[Event "RUS-ch Women Rapid 2019"]
[Site "Sochi"]
[Date "2019.10.16"]
[Round "7.12"]
[White "Klyasheva, Tatiana"]
[Black "Illina, Natalia"]
[Result "0-1"]
[ECO "A00"]
[WhiteElo "2049"]
[BlackElo "2081"]
[Annotator "NA"]
[PlyCount "80"]
[EventDate "2019.10.15"]
[EventType "swiss"]
[EventCountry "RUS"]
[SourceTitle "playchess.com"]
[Source "ChessBase"]
[SourceQuality "1"]
[TimeControl "900+10"]

1. Nc3 {[%emt 0:00:00]} d5 {[%emt 0:00:01]} 2. e4 {[%emt 0:00:00]} d4 {[%emt 0:00:08]} 3. Nce2 {[%emt 0:00:00]} c5 {[%emt 0:00:07]} 4. Ng3 {[%emt 0:00:00]} Nc6 {[%emt 0:00:23]} 5. Nf3 {[%emt 0:00:19]} g6 {[%emt 0:00:07]} 6. Bc4 {[%emt 0:00:04]} Bg7 {[%emt 0:00:17]} 7. d3 {[%emt 0:00:04]} e5 {[%emt 0:01:05]} 8. O-O {[%emt 0:01:50]} h6 {[%emt 0:00:57]} 9. a4 {[%emt 0:00:20]} Nge7 {[%emt 0:00:00]} 10. Ne1 {[%emt 0:00:27]} O-O {[%emt 0:01:59]} 11. f4 {[%emt 0:00:11]} exf4 {[%emt 0:00:04]} 12. Bxf4 {[%emt 0:00:08]} Ne5 {[%emt 0:00:14]} 13. b3 {[%emt 0:01:31]} Nxc4 {[%emt 0:01:35]} 14. bxc4 {[%emt 0:00:01]} Nc6 {[%emt 0:00:34]} 15. Nf3 {[%emt 0:01:34]} Qe7 {[%emt 0:01:35]} 16. Rb1 {[%emt 0:00:16]} b6 {[%emt 0:00:17]} 17. h3 {[%emt 0:01:14]} Bd7 {[%emt 0:00:01]} 18. Ne2 {[%emt 0:02:07]} Nb4 {[%emt 0:00:11]} 19. Ra1 {[%emt 0:01:45]} a5 {[%emt 0:00:01]} 20. Bd2 {[%emt 0:00:53]} Qe8 {[%emt 0:00:47]} 21. c3 {[%emt 0:02:09]} Nxd3 {[%emt 0:00:02]} 22. cxd4 {[%emt 0:00:03]} cxd4 {[%emt 0:02:07]} 23. Bxh6 {[%emt 0:01:22]} Bxh6 {[%emt 0:01:17]} 24. Qxd3 {[%emt 0:00:01]} Bxa4 {[%emt 0:00:58]} 25. Nexd4 {[%emt 0:01:18]} Rd8 {[%emt 0:00:21]} 26. e5 {[%emt 0:00:47]} Bg7 {[%emt 0:00:19]} 27. Rfe1 {[%emt 0:00:21]} Bc6 {[%emt 0:00:18]} 28. Rad1 {[%emt 0:00:20]} Bxf3 {[%emt 0:00:49]} 29. Qxf3 {[%emt 0:00:15]} Qa4 {[%emt 0:01:16]} 30. Qc6 {[%emt 0:00:18]} Qb4 {[%emt 0:00:40]} 31. Qb5 {[%emt 0:00:13]} Qc3 {[%emt 0:00:45]} 32. Nc6 {[%emt 0:00:08]} Rxd1 {[%emt 0:00:32]} 33. Rxd1 {[%emt 0:00:01]} Qe3+ {[%emt 0:00:01]} 34. Kh1 {[%emt 0:00:04]} Kh7 {[%emt 0:00:24]} 35. Rd4 {[%emt 0:00:17]} Rc8 {[%emt 0:00:23]} 36. Rh4+ {[%emt 0:00:02]} Bh6 {[%emt 0:00:01]} 37. Ne7 {[%emt 0:00:17]} Qe1+ {[%emt 0:00:08]} 38. Kh2 {[%emt 0:00:04]} Qxh4 {[%emt 0:00:14]} 39. Nxc8 {[%emt 0:00:28]} Bf4+ 40. Kh1 Qe1# 0-1

[Event "RUS-ch Women Rapid 2019"]
[Site "Sochi"]
[Date "2019.10.16"]
[Round "8.4"]
[White "Goltseva, Ekaterina"]
[Black "Lysenko, Margarita"]
[Result "1-0"]
[ECO "E52"]
[WhiteElo "2317"]
[BlackElo "2243"]
[Annotator "NA"]
[PlyCount "81"]
[EventDate "2019.10.15"]
[EventType "swiss"]
[EventCountry "RUS"]
[SourceTitle "playchess.com"]
[Source "ChessBase"]
[SourceQuality "1"]
[TimeControl "900+10"]

1. d4 {[%emt 0:00:00]} Nf6 {[%emt 0:00:00]} 2. c4 {[%emt 0:00:00]} e6 {[%emt 0:00:00]} 3. Nc3 {[%emt 0:00:00]} Bb4 {[%emt 0:00:00]} 4. e3 {[%emt 0:00:00]} O-O {[%emt 0:00:14]} 5. Bd3 {[%emt 0:00:00]} d5 {[%emt 0:00:12]} 6. Nf3 {[%emt 0:00:01]} b6 {[%emt 0:00:35]} 7. cxd5 {[%emt 0:00:03]} exd5 {[%emt 0:00:15]} 8. O-O {[%emt 0:00:02]} Bb7 {[%emt 0:00:20]} 9. Ne5 {[%emt 0:00:08]} Nbd7 {[%emt 0:03:52]} 10. f4 {[%emt 0:00:14]} a6 {[%emt 0:00:34]} 11. Ne2 {[%emt 0:06:26]} Ne4 {[%emt 0:03:18]} 12. Qa4 {[%emt 0:00:37]} Nxe5 {[%emt 0:00:19]} 13. fxe5 {[%emt 0:00:05]} Be7 {[%emt 0:00:50]} 14. Nf4 {[%emt 0:00:27]} c5 {[%emt 0:01:12]} 15. Qd1 {[%emt 0:00:18]} Bg5 {[%emt 0:01:36]} 16. Qg4 {[%emt 0:03:12]} Bh6 {[%emt 0:00:47]} 17. b3 {[%emt 0:02:18]} Rc8 {[%emt 0:00:14]} 18. Ba3 {[%emt 0:00:37]} Kh8 {[%emt 0:02:15]} 19. Rac1 {[%emt 0:00:32]} f5 {[%emt 0:00:35]} 20. exf6 {[%emt 0:01:05]} Nxf6 {[%emt 0:00:14]} 21. Qh3 {[%emt 0:00:43]} Qe7 {[%emt 0:00:26]} 22. Bf5 {[%emt 0:00:52]} Bxf4 {[%emt 0:00:33]} 23. Rxf4 {[%emt 0:00:20]} Rc7 {[%emt 0:00:13]} 24. Rcf1 {[%emt 0:00:41]} Bc8 {[%emt 0:00:02]} 25. dxc5 {[%emt 0:00:06]} bxc5 {[%emt 0:00:06]} 26. Bb2 {[%emt 0:00:07]} Bxf5 {[%emt 0:00:25]} 27. Rxf5 {[%emt 0:00:02]} Rc6 {[%emt 0:00:09]} 28. Re5 {[%emt 0:00:16]} Qd8 {[%emt 0:00:09]} 29. Rg5 {[%emt 0:00:25]} d4 {[%emt 0:00:06]} 30. Rd1 {[%emt 0:00:07]} Qe7 {[%emt 0:00:16]} 31. exd4 {[%emt 0:00:09]} Qe2 {[%emt 0:00:01]} 32. Qf3 {[%emt 0:00:13]} Re6 {[%emt 0:00:18]} 33. Bc3 {[%emt 0:00:12]} Qxa2 {[%emt 0:00:13]} 34. d5 {[%emt 0:00:09]} Re2 {[%emt 0:00:10]} 35. d6 {[%emt 0:00:07]} Qc2 {[%emt 0:00:02]} 36. Rgd5 {[%emt 0:00:13]} Nd7 {[%emt 0:00:15]} 37. Qg3 {[%emt 0:00:04]} Rf7 {[%emt 0:00:04]} 38. R5d3 {[%emt 0:00:16]} Re6 {[%emt 0:00:11]} 39. R3d2 {[%emt 0:00:03]} Qe4 {[%emt 0:00:09]} 40. Rf2 {[%emt 0:00:10]} Rxf2 {[%emt 0:00:16]} 41. Qxg7# {[%emt 0:00:01]} 1-0

[Event "RUS-ch Women Rapid 2019"]
[Site "Sochi"]
[Date "2019.10.16"]
[Round "8.5"]
[White "Guseva, Marina"]
[Black "Ovod, Evgenija"]
[Result "1-0"]
[ECO "D35"]
[WhiteElo "2335"]
[BlackElo "2347"]
[Annotator "NA"]
[PlyCount "83"]
[EventDate "2019.10.15"]
[EventType "swiss"]
[EventCountry "RUS"]
[SourceTitle "playchess.com"]
[Source "ChessBase"]
[SourceQuality "1"]
[TimeControl "900+10"]

1. d4 {[%emt 0:00:00]} Nf6 {[%emt 0:00:00]} 2. c4 {[%emt 0:00:00]} e6 {[%emt 0:00:00]} 3. Nc3 {[%emt 0:00:00]} d5 {[%emt 0:00:00]} 4. cxd5 {[%emt 0:00:00]} Nxd5 {[%emt 0:00:00]} 5. e4 {[%emt 0:00:00]} Nxc3 {[%emt 0:00:00]} 6. bxc3 {[%emt 0:00:00]} c5 {[%emt 0:00:00]} 7. a3 {[%emt 0:00:25]} cxd4 {[%emt 0:00:12]} 8. cxd4 {[%emt 0:00:02]} e5 {[%emt 0:00:02]} 9. dxe5 {[%emt 0:00:10]} Qa5+ {[%emt 0:00:41]} 10. Bd2 {[%emt 0:00:03]} Qxe5 {[%emt 0:00:04]} 11. Nf3 {[%emt 0:00:57]} Qxe4+ {[%emt 0:00:32]} 12. Be3 {[%emt 0:00:31]} Bc5 {[%emt 0:02:15]} 13. Rc1 {[%emt 0:00:07]} Nd7 {[%emt 0:01:15]} 14. Rc4 {[%emt 0:00:04]} Qe7 {[%emt 0:04:03]} 15. Qc2 {[%emt 0:00:38]} O-O {[%emt 0:01:21]} 16. Rxc5 {[%emt 0:00:02]} Nxc5 {[%emt 0:00:01]} 17. Qxc5 {[%emt 0:00:01]} Qxc5 {[%emt 0:01:28]} 18. Bxc5 {[%emt 0:00:02]} Re8+ {[%emt 0:00:01]} 19. Be3 {[%emt 0:00:33]} Bd7 {[%emt 0:01:49]} 20. Nd4 {[%emt 0:03:12]} Rac8 {[%emt 0:01:30]} 21. Kd2 {[%emt 0:00:03]} Re5 {[%emt 0:00:02]} 22. Bd3 {[%emt 0:01:00]} Ra5 {[%emt 0:00:21]} 23. Ra1 {[%emt 0:02:04]} b6 {[%emt 0:00:28]} 24. h3 {[%emt 0:02:22]} f5 {[%emt 0:00:23]} 25. Bc2 {[%emt 0:00:54]} g6 {[%emt 0:00:25]} 26. Bb3+ {[%emt 0:00:03]} Kg7 {[%emt 0:00:05]} 27. Bf4 {[%emt 0:01:26]} Kf6 {[%emt 0:00:03]} 28. h4 {[%emt 0:00:27]} Ba4 {[%emt 0:00:25]} 29. Be6 {[%emt 0:00:24]} Re8 {[%emt 0:00:41]} 30. Re1 {[%emt 0:00:07]} a6 {[%emt 0:01:32]} 31. Bc7 {[%emt 0:01:27]} h6 {[%emt 0:00:04]} 32. f4 {[%emt 0:00:33]} Bb5 {[%emt 0:00:02]} 33. Be5+ {[%emt 0:00:11]} Ke7 {[%emt 0:00:01]} 34. Rc1 {[%emt 0:00:12]} Bd7 {[%emt 0:00:36]} 35. Rc7 {[%emt 0:00:03]} Rd8 {[%emt 0:00:06]} 36. Nc6+ {[%emt 0:00:11]} Kxe6 {[%emt 0:00:01]} 37. Nxd8+ {[%emt 0:00:01]} Kd5 {[%emt 0:00:02]} 38. Rxd7+ {[%emt 0:00:02]} Kc4 {[%emt 0:00:05]} 39. Rd3 {[%emt 0:00:16]} b5 {[%emt 0:00:22]} 40. Nb7 {[%emt 0:00:27]} Ra4 {[%emt 0:00:03]} 41. Rd4+ {[%emt 0:00:03]} Kb3 {[%emt 0:00:01]} 42. Nc5+ {[%emt 0:00:01]} 1-0

[Event "RUS-ch Women Rapid 2019"]
[Site "Sochi"]
[Date "2019.10.16"]
[Round "8.7"]
[White "Chernyak, Viktoria"]
[Black "Illina, Natalia"]
[Result "1-0"]
[ECO "A04"]
[WhiteElo "2284"]
[BlackElo "2081"]
[Annotator "NA"]
[PlyCount "53"]
[EventDate "2019.10.15"]
[EventType "swiss"]
[EventCountry "RUS"]
[SourceTitle "playchess.com"]
[Source "ChessBase"]
[SourceQuality "1"]
[TimeControl "900+10"]

1. Nf3 {[%emt 0:00:00]} c5 {[%emt 0:00:00]} 2. c4 {[%emt 0:00:00]} Nc6 {[%emt 0:00:00]} 3. Nc3 {[%emt 0:00:14]} g6 {[%emt 0:00:00]} 4. e3 {[%emt 0:00:04]} Bg7 {[%emt 0:00:02]} 5. d4 {[%emt 0:00:02]} d6 {[%emt 0:00:34]} 6. d5 {[%emt 0:00:32]} Ne5 {[%emt 0:01:16]} 7. Nxe5 {[%emt 0:00:23]} Bxe5 {[%emt 0:00:02]} 8. Bd3 {[%emt 0:00:09]} Bxc3+ {[%emt 0:00:04]} 9. bxc3 {[%emt 0:00:02]} f5 {[%emt 0:00:04]} 10. e4 {[%emt 0:00:56]} Nf6 {[%emt 0:04:22]} 11. exf5 {[%emt 0:00:02]} gxf5 {[%emt 0:00:01]} 12. Qf3 {[%emt 0:01:34]} Qa5 {[%emt 0:02:30]} 13. Bd2 {[%emt 0:00:57]} Qa4 {[%emt 0:00:51]} 14. O-O {[%emt 0:01:01]} Bd7 {[%emt 0:00:02]} 15. Rfe1 {[%emt 0:00:02]} O-O-O {[%emt 0:01:13]} 16. Rxe7 {[%emt 0:00:06]} Rde8 {[%emt 0:00:18]} 17. Rf7 {[%emt 0:01:21]} Ne4 {[%emt 0:00:10]} 18. Bh6 {[%emt 0:00:53]} Rhg8 {[%emt 0:02:39]} 19. Rxf5 {[%emt 0:00:41]} Nxc3 {[%emt 0:00:23]} 20. Rf7 {[%emt 0:00:28]} Kb8 {[%emt 0:01:26]} 21. h3 {[%emt 0:00:37]} Bc8 {[%emt 0:01:07]} 22. Bf4 {[%emt 0:01:07]} Rd8 {[%emt 0:00:42]} 23. Bxh7 {[%emt 0:00:14]} Qxc4 {[%emt 0:00:39]} 24. Bxg8 {[%emt 0:00:06]} Rxg8 {[%emt 0:00:09]} 25. Bxd6+ {[%emt 0:00:09]} Ka8 {[%emt 0:00:00]} 26. Rf8 {[%emt 0:00:41]} Ne2+ 27. Kh2 {[%emt 0:00:56]} 1-0

[Event "RUS-ch Women Rapid 2019"]
[Site "Sochi"]
[Date "2019.10.16"]
[Round "8.8"]
[White "Garifullina, Leya"]
[Black "Bivol, Alina"]
[Result "0-1"]
[ECO "C18"]
[WhiteElo "2330"]
[BlackElo "2283"]
[Annotator "NA"]
[PlyCount "138"]
[EventDate "2019.10.15"]
[EventType "swiss"]
[EventCountry "RUS"]
[SourceTitle "playchess.com"]
[Source "ChessBase"]
[SourceQuality "1"]
[TimeControl "900+10"]

1. e4 {[%emt 0:00:00]} e6 {[%emt 0:00:00]} 2. d4 {[%emt 0:00:00]} d5 {[%emt 0:00:00]} 3. Nc3 {[%emt 0:00:00]} Bb4 {[%emt 0:00:00]} 4. e5 {[%emt 0:00:00]} c5 5. a3 Bxc3+ {[%emt 0:00:00]} 6. bxc3 {[%emt 0:00:00]} Qa5 {[%emt 0:00:00]} 7. Bd2 {[%emt 0:00:00]} c4 {[%emt 0:00:00]} 8. Ne2 {[%emt 0:00:06]} Nc6 {[%emt 0:00:01]} 9. Nf4 {[%emt 0:00:02]} Nge7 {[%emt 0:00:12]} 10. g3 {[%emt 0:00:09]} Bd7 {[%emt 0:00:01]} 11. Bh3 {[%emt 0:00:02]} O-O-O {[%emt 0:00:04]} 12. O-O {[%emt 0:00:16]} g6 {[%emt 0:00:17]} 13. Ng2 {[%emt 0:00:08]} Rdg8 {[%emt 0:00:17]} 14. Ne1 {[%emt 0:00:52]} g5 {[%emt 0:00:58]} 15. Bg4 {[%emt 0:00:09]} Qd8 {[%emt 0:00:52]} 16. Bh5 {[%emt 0:00:09]} Qf8 {[%emt 0:00:02]} 17. Qf3 {[%emt 0:00:10]} Nf5 {[%emt 0:00:06]} 18. h3 {[%emt 0:00:15]} Be8 {[%emt 0:00:42]} 19. Ng2 {[%emt 0:00:04]} Ng7 {[%emt 0:00:25]} 20. a4 {[%emt 0:01:35]} Nxh5 {[%emt 0:00:18]} 21. Qxh5 {[%emt 0:00:02]} f5 {[%emt 0:00:01]} 22. Qf3 {[%emt 0:00:06]} h5 {[%emt 0:01:11]} 23. h4 {[%emt 0:00:14]} gxh4 {[%emt 0:00:15]} 24. Nxh4 {[%emt 0:00:02]} Rg4 {[%emt 0:00:01]} 25. Kg2 {[%emt 0:00:13]} Rhg8 {[%emt 0:00:21]} 26. Rh1 {[%emt 0:00:01]} f4 {[%emt 0:00:01]} 27. Bxf4 {[%emt 0:00:12]} Qxf4 {[%emt 0:01:09]} 28. Qxf4 {[%emt 0:00:17]} Rxf4 {[%emt 0:00:01]} 29. Raf1 {[%emt 0:00:40]} Re4 {[%emt 0:00:14]} 30. Re1 {[%emt 0:00:11]} Rxe1 {[%emt 0:00:06]} 31. Rxe1 {[%emt 0:00:02]} Ne7 {[%emt 0:00:01]} 32. a5 {[%emt 0:00:03]} Ng6 {[%emt 0:00:18]} 33. Nf3 {[%emt 0:00:18]} Ne7 {[%emt 0:00:23]} 34. Nh4 {[%emt 0:00:04]} Kc7 {[%emt 0:00:04]} 35. Re3 {[%emt 0:00:06]} Ng6 {[%emt 0:00:29]} 36. Nf3 {[%emt 0:00:06]} Ne7 {[%emt 0:00:44]} 37. Nh4 {[%emt 0:00:03]} Bg6 {[%emt 0:00:06]} 38. Nxg6 {[%emt 0:00:03]} Rxg6 {[%emt 0:00:02]} 39. Kh3 {[%emt 0:00:13]} Nf5 {[%emt 0:00:05]} 40. Re1 {[%emt 0:00:01]} Kc6 {[%emt 0:00:41]} 41. Rb1 {[%emt 0:00:11]} Rg7 {[%emt 0:00:13]} 42. Rb2 {[%emt 0:00:09]} Rf7 {[%emt 0:00:04]} 43. Rb1 {[%emt 0:00:37]} Nh6 {[%emt 0:00:34]} 44. Kg2 {[%emt 0:00:08]} Ng4 {[%emt 0:00:05]} 45. f3 {[%emt 0:00:02]} Ne3+ {[%emt 0:00:28]} 46. Kf2 {[%emt 0:00:01]} Nf5 {[%emt 0:00:01]} 47. Rh1 {[%emt 0:00:07]} Rg7 {[%emt 0:00:41]} 48. Rxh5 {[%emt 0:00:33]} Nxg3 {[%emt 0:00:05]} 49. Rh6 {[%emt 0:00:03]} Kd7 {[%emt 0:00:01]} 50. Rh8 {[%emt 0:00:03]} Nf5 {[%emt 0:00:19]} 51. Ra8 {[%emt 0:00:33]} a6 {[%emt 0:00:12]} 52. Rb8 {[%emt 0:00:03]} Kc7 {[%emt 0:00:09]} 53. Re8 {[%emt 0:00:02]} Re7 {[%emt 0:00:01]} 54. Ra8 {[%emt 0:00:04]} Ng7 {[%emt 0:00:40]} 55. Ke3 {[%emt 0:00:05]} Re8 {[%emt 0:00:01]} 56. Rxe8 {[%emt 0:00:04]} Nxe8 {[%emt 0:00:00]} 57. Kf4 {[%emt 0:00:03]} b6 {[%emt 0:00:07]} 58. axb6+ {[%emt 0:00:01]} Kxb6 {[%emt 0:00:01]} 59. Kg5 {[%emt 0:00:02]} a5 {[%emt 0:00:07]} 60. f4 {[%emt 0:00:00]} a4 {[%emt 0:00:05]} 61. f5 {[%emt 0:00:01]} exf5 {[%emt 0:00:01]} 62. Kxf5 {[%emt 0:00:02]} a3 {[%emt 0:00:02]} 63. Ke6 {[%emt 0:00:03]} Nc7+ {[%emt 0:00:02]} 64. Kd6 {[%emt 0:00:01]} a2 {[%emt 0:00:02]} 65. e6 {[%emt 0:00:02]} a1=Q {[%emt 0:00:05]} 66. e7 {[%emt 0:00:03]} Qa3+ {[%emt 0:00:12]} 67. Kd7 {[%emt 0:00:06]} Qa4+ {[%emt 0:00:02]} 68. Kd6 {[%emt 0:00:02]} Qc6+ {[%emt 0:00:18]} 69. Ke5 {[%emt 0:00:02]} Qe6+ {[%emt 0:00:01] Ke4} 0-1

[Event "RUS-ch Women Rapid 2019"]
[Site "Sochi"]
[Date "2019.10.16"]
[Round "8.10"]
[White "Karavaeva, Olga"]
[Black "Fominykh, Maria"]
[Result "0-1"]
[ECO "A24"]
[WhiteElo "2260"]
[BlackElo "2206"]
[Annotator "NA"]
[PlyCount "78"]
[EventDate "2019.10.15"]
[EventType "swiss"]
[EventCountry "RUS"]
[SourceTitle "playchess.com"]
[Source "ChessBase"]
[SourceQuality "1"]
[TimeControl "900+10"]

1. c4 {[%emt 0:00:00]} Nf6 {[%emt 0:00:00]} 2. Nc3 {[%emt 0:00:00]} e5 {[%emt 0:00:00]} 3. g3 {[%emt 0:00:00]} g6 {[%emt 0:00:23]} 4. Bg2 {[%emt 0:00:00]} Bg7 {[%emt 0:00:01]} 5. Nf3 {[%emt 0:00:00]} d6 {[%emt 0:00:10]} 6. O-O {[%emt 0:00:02]} O-O {[%emt 0:00:01]} 7. b3 {[%emt 0:00:02]} Re8 {[%emt 0:00:05]} 8. Bb2 {[%emt 0:00:02]} c6 {[%emt 0:00:37]} 9. e4 {[%emt 0:02:38]} Na6 {[%emt 0:01:05]} 10. h3 {[%emt 0:00:36]} Nc5 {[%emt 0:00:06]} 11. Qc2 {[%emt 0:00:23]} Nh5 {[%emt 0:01:42]} 12. Rad1 {[%emt 0:03:43]} Ne6 {[%emt 0:00:18]} 13. d3 {[%emt 0:00:32]} a6 {[%emt 0:01:05]} 14. a4 {[%emt 0:00:18]} Qb6 {[%emt 0:00:13]} 15. Ba3 {[%emt 0:02:20]} Nxg3 {[%emt 0:02:16]} 16. c5 {[%emt 0:01:51]} Nxc5 {[%emt 0:00:01]} 17. fxg3 {[%emt 0:00:04]} Nxe4+ {[%emt 0:00:02]} 18. Kh2 {[%emt 0:00:04]} Nxc3 {[%emt 0:00:02]} 19. Qxc3 {[%emt 0:02:27]} e4 {[%emt 0:00:01]} 20. Qc2 {[%emt 0:01:10]} exf3 {[%emt 0:00:03]} 21. Rxf3 {[%emt 0:00:02]} Be6 {[%emt 0:00:03]} 22. d4 {[%emt 0:01:02]} Bd5 {[%emt 0:00:10]} 23. Rfd3 {[%emt 0:00:32]} Bxg2 {[%emt 0:01:14]} 24. Qxg2 {[%emt 0:00:01]} Re6 {[%emt 0:00:02]} 25. Qf3 {[%emt 0:00:49]} Rae8 {[%emt 0:00:13]} 26. R1d2 {[%emt 0:00:03]} d5 {[%emt 0:01:57]} 27. Bc5 {[%emt 0:00:24]} Qc7 {[%emt 0:00:01]} 28. Rf2 {[%emt 0:00:05]} h5 {[%emt 0:01:26]} 29. h4 {[%emt 0:00:02]} Re4 {[%emt 0:00:32]} 30. Kg2 {[%emt 0:00:13]} b6 {[%emt 0:00:26]} 31. Bxb6 {[%emt 0:00:24]} Qxb6 {[%emt 0:00:03]} 32. Qxf7+ {[%emt 0:00:02]} Kh7 {[%emt 0:00:25]} 33. Rf6 {[%emt 0:00:11]} Rg4 {[%emt 0:00:14]} 34. Qxe8 {[%emt 0:00:23]} Bxf6 {[%emt 0:00:06]} 35. Rf3 {[%emt 0:00:08]} Qxd4 {[%emt 0:00:23]} 36. Qxc6 {[%emt 0:00:09]} Bg7 {[%emt 0:00:18]} 37. Qxa6 {[%emt 0:00:10]} Re4 {[%emt 0:00:27]} 38. Rf2 {[%emt 0:00:09]} Re3 {[%emt 0:00:17]} 39. Qb7 {[%emt 0:00:15]} Qe5 {[%emt 0:00:23]} 0-1

[Event "RUS-ch Women Rapid 2019"]
[Site "Sochi"]
[Date "2019.10.16"]
[Round "8.11"]
[White "Utiatskaja, Irina"]
[Black "Bykova, Anastasia"]
[Result "0-1"]
[ECO "B11"]
[WhiteElo "2172"]
[BlackElo "2247"]
[Annotator "NA"]
[PlyCount "82"]
[EventDate "2019.10.15"]
[EventType "swiss"]
[EventCountry "RUS"]
[SourceTitle "playchess.com"]
[Source "ChessBase"]
[SourceQuality "1"]
[TimeControl "900+10"]

1. e4 {[%emt 0:00:00]} c6 {[%emt 0:00:00]} 2. Nc3 {[%emt 0:00:00]} d5 {[%emt 0:00:00]} 3. Nf3 {[%emt 0:00:00]} Bg4 {[%emt 0:00:00]} 4. h3 {[%emt 0:00:01]} Bxf3 {[%emt 0:00:00]} 5. Qxf3 {[%emt 0:00:01]} e6 {[%emt 0:00:00]} 6. Be2 {[%emt 0:00:13]} Nf6 {[%emt 0:00:00]} 7. O-O {[%emt 0:00:06]} Nbd7 {[%emt 0:00:10]} 8. d4 {[%emt 0:00:03]} dxe4 {[%emt 0:00:03]} 9. Nxe4 {[%emt 0:00:02]} Nxe4 {[%emt 0:00:02]} 10. Qxe4 {[%emt 0:00:01]} Nf6 {[%emt 0:00:02]} 11. Qd3 {[%emt 0:00:38]} Be7 {[%emt 0:00:05]} 12. c4 {[%emt 0:00:33]} O-O {[%emt 0:00:03]} 13. b3 {[%emt 0:00:04]} a5 {[%emt 0:00:10]} 14. a3 {[%emt 0:00:38]} Qb6 {[%emt 0:00:03]} 15. Bb2 {[%emt 0:00:36]} Rfd8 {[%emt 0:00:03]} 16. Qc2 {[%emt 0:01:48]} Rd7 {[%emt 0:00:02]} 17. Rad1 {[%emt 0:02:03]} Rad8 {[%emt 0:00:21]} 18. Kh1 {[%emt 0:01:04]} Ne8 {[%emt 0:01:23]} 19. f4 {[%emt 0:01:37]} Bf6 {[%emt 0:00:15]} 20. c5 {[%emt 0:00:01]} Qa7 {[%emt 0:00:06]} 21. Qe4 {[%emt 0:00:58]} Nc7 {[%emt 0:00:49]} 22. Bc4 {[%emt 0:01:05]} Nd5 {[%emt 0:01:23]} 23. Bxd5 {[%emt 0:01:14]} Rxd5 {[%emt 0:00:40]} 24. f5 {[%emt 0:00:16]} exf5 {[%emt 0:00:14]} 25. Rxf5 {[%emt 0:00:11]} Rxf5 {[%emt 0:03:29]} 26. Qxf5 {[%emt 0:00:01]} Qb8 {[%emt 0:00:01]} 27. Rf1 {[%emt 0:01:05]} Rd5 {[%emt 0:03:19]} 28. Qg4 {[%emt 0:00:37]} h5 {[%emt 0:00:07]} 29. Qe4 {[%emt 0:00:18]} Qc8 {[%emt 0:01:17]} 30. Bc3 {[%emt 0:00:54]} Qd7 {[%emt 0:00:07]} 31. Bxa5 {[%emt 0:01:07]} Bxd4 {[%emt 0:00:25]} 32. b4 {[%emt 0:00:53]} Be5 {[%emt 0:00:53]} 33. Qf3 {[%emt 0:00:10]} g6 {[%emt 0:00:13]} 34. Bb6 {[%emt 0:01:00]} Rd3 {[%emt 0:00:32]} 35. Qe2 {[%emt 0:00:23]} Qd5 {[%emt 0:01:17]} 36. Kg1 {[%emt 0:00:17]} Rxa3 {[%emt 0:00:40]} 37. Rd1 {[%emt 0:00:01]} Qe6 {[%emt 0:00:15]} 38. Kh1 {[%emt 0:00:26]} Kg7 {[%emt 0:00:31]} 39. Re1 {[%emt 0:00:15]} Rxh3+ {[%emt 0:00:10]} 40. gxh3 {[%emt 0:00:08]} Qxh3+ {[%emt 0:00:01]} 41. Kg1 {[%emt 0:00:06]} Bd4+ {[%emt 0:00:01]} 0-1

[Event "RUS-ch Women Rapid 2019"]
[Site "Sochi"]
[Date "2019.10.16"]
[Round "9.2"]
[White "Voit, Daria"]
[Black "Goltseva, Ekaterina"]
[Result "1-0"]
[ECO "A09"]
[WhiteElo "2361"]
[BlackElo "2317"]
[Annotator "NA"]
[PlyCount "69"]
[EventDate "2019.10.15"]
[EventType "swiss"]
[EventCountry "RUS"]
[SourceTitle "playchess.com"]
[Source "ChessBase"]
[SourceQuality "1"]
[TimeControl "900+10"]

1. Nf3 {[%emt 0:00:01]} d5 {[%emt 0:00:00]} 2. c4 {[%emt 0:00:02]} d4 {[%emt 0:00:00]} 3. g3 {[%emt 0:00:09]} c5 {[%emt 0:00:06]} 4. Bg2 {[%emt 0:00:01]} Nf6 {[%emt 0:00:24]} 5. d3 {[%emt 0:00:08]} Nc6 {[%emt 0:00:37]} 6. e3 {[%emt 0:00:08]} e5 {[%emt 0:02:17]} 7. O-O {[%emt 0:00:10]} Be7 {[%emt 0:00:15]} 8. exd4 {[%emt 0:00:03]} cxd4 {[%emt 0:01:10]} 9. Re1 {[%emt 0:00:59]} Nd7 {[%emt 0:00:16]} 10. Na3 {[%emt 0:00:02]} O-O {[%emt 0:00:21]} 11. Nc2 {[%emt 0:00:03]} a5 {[%emt 0:01:38]} 12. Na3 {[%emt 0:00:07]} Kh8 {[%emt 0:01:00]} 13. Nb5 {[%emt 0:00:06]} f6 {[%emt 0:01:23]} 14. Nd2 {[%emt 0:01:37]} Nc5 {[%emt 0:00:23]} 15. Ne4 {[%emt 0:00:02]} Ne6 {[%emt 0:01:25]} 16. f4 {[%emt 0:04:13]} f5 {[%emt 0:00:48]} 17. Nf2 {[%emt 0:00:02]} exf4 {[%emt 0:00:11]} 18. Bxf4 {[%emt 0:01:00]} Nxf4 {[%emt 0:00:06]} 19. gxf4 {[%emt 0:00:04]} g5 {[%emt 0:00:45]} 20. Qf3 {[%emt 0:02:55]} Nb4 {[%emt 0:01:11]} 21. Qe2 {[%emt 0:00:04]} Bf6 {[%emt 0:00:29]} 22. a3 {[%emt 0:00:38]} Nc6 {[%emt 0:00:05]} 23. c5 {[%emt 0:03:08]} gxf4 {[%emt 0:01:09]} 24. Nh3 {[%emt 0:00:13]} Bh4 {[%emt 0:02:00]} 25. Rf1 {[%emt 0:00:01]} Re8 {[%emt 0:00:31]} 26. Qh5 {[%emt 0:00:24]} Qe7 {[%emt 0:00:09]} 27. Nc7 {[%emt 0:02:08]} Bd7 {[%emt 0:00:31]} 28. Nxf4 {[%emt 0:00:30]} Rg8 {[%emt 0:00:05]} 29. Nxa8 {[%emt 0:00:06]} Ne5 {[%emt 0:00:20]} 30. Nb6 {[%emt 0:00:20]} Bc6 {[%emt 0:00:05]} 31. Nbd5 {[%emt 0:00:03]} Qd8 {[%emt 0:00:08]} 32. Qxf5 {[%emt 0:00:18]} Nxd3 {[%emt 0:00:21]} 33. Qxd3 {[%emt 0:00:08]} Bxd5 {[%emt 0:00:01]} 34. Qxd4+ {[%emt 0:00:07]} Bf6 {[%emt 0:00:09]} 35. Qxd5 {[%emt 0:00:02]} 1-0